fUSD/lending_fUSD_20240331
["ID","MTS","AMOUNT","RATE_DAILY","PERIOD"]
[321098874,1711894268710,-500.0,0.00055616,120]
[321098875,1711894268719,-2060.41,0.00055616,120]
[321098876,1711894268728,-500.0,0.00055616,120]
[321098877,1711894268738,-194.96770564,0.00055616,120]
[321098878,1711894268748,-500.0,0.00055616,120]
[321098879,1711894268758,-500.0,0.00055616,120]
[321098880,1711894268767,-500.0,0.00055616,120]
[321098881,1711894268776,-500.0,0.00055616,120]
[321098882,1711894268786,-500.0,0.00055616,120]
[321098883,1711894268795,-500.0,0.00055616,120]
[321098884,1711894268805,-500.0,0.00055616,120]
[321098885,1711894268814,-500.0,0.00055616,120]
[321098886,1711894268824,-500.0,0.00055616,120]
[321098887,1711894268834,-247.23,0.00055616,120]
[321098888,1711894268843,-500.0,0.00055616,120]
[321098889,1711894268853,-507.06,0.00055616,120]
[321098890,1711894268863,-500.0,0.00055616,120]
[321098891,1711894268872,-501.29,0.00055616,120]
[321098892,1711894268882,-500.0,0.00055616,120]
[321098893,1711894268891,-500.0,0.00055616,120]
[321098894,1711894268900,-500.0,0.00055616,120]
[321098895,1711894268909,-500.0,0.00055616,120]
[321098896,1711894268919,-500.0,0.00055616,120]
[321098897,1711894268928,-500.0,0.00055616,120]
[321098898,1711894268937,-9968.34,0.00055616,120]
[321098899,1711894268947,-3471.43,0.00055616,120]
[321098900,1711894268958,-500.0,0.00055616,120]
[321098901,1711894268968,-500.0,0.00055616,120]
[321098902,1711894268977,-293.07181961,0.00055616,120]
[321098903,1711894268986,-547.51,0.00055616,120]
[321098904,1711894268995,-500.0,0.00055616,120]
[321098905,1711894269004,-500.0,0.00055616,120]
[321098906,1711894269013,-500.0,0.00055616,120]
[321098907,1711894269022,-322.0,0.00055674,30]
[321098908,1711894269032,-500.0,0.00055879,25]
[321098909,1711894269041,-160.52748431,0.0005588,120]
[321098910,1711894269051,-500.0,0.0005589,120]
[321098911,1711894269061,-664.08,0.0005589,120]
[321098912,1711894269070,-546.18,0.0005589,120]
[321098913,1711894269080,-500.0,0.0005589,120]
[321098914,1711894269089,-2110.47,0.0005589,120]
[321098915,1711894269099,-500.0,0.0005589,120]
[321098916,1711894269108,-9971.6,0.0005589,120]
[321098917,1711894269117,-500.0,0.0005589,120]
[321098918,1711894269126,-150.0,0.0005589,120]
[321098919,1711894269135,-389.15,0.0005589,120]
[321098920,1711894269144,-500.0,0.0005589,120]
[321098921,1711894269153,-500.0,0.0005589,120]
[321098922,1711894269163,-323.85,0.0005589,120]
[321098923,1711894269172,-563.56,0.0005589,120]
[321098924,1711894269181,-500.0,0.0005589,120]
[321098925,1711894269190,-6781.1,0.0005589,120]
[321098926,1711894269200,-545.32,0.0005589,120]
[321098927,1711894269209,-500.0,0.0005589,120]
[321098928,1711894269218,-1000.0,0.0005589,120]
[321098929,1711894269228,-500.0,0.0005589,120]
[321098930,1711894269238,-500.0,0.0005589,120]
[321098931,1711894269248,-500.0,0.0005589,120]
[321098932,1711894269257,-500.0,0.0005589,120]
[321098933,1711894269267,-195.24060192,0.0005589,120]
[321098934,1711894269277,-500.0,0.0005589,120]
[321098935,1711894269286,-500.0,0.0005589,120]
[321098936,1711894269296,-500.0,0.0005589,120]
[321098937,1711894269305,-500.0,0.0005589,120]
[321098938,1711894269314,-500.0,0.0005589,120]
[321098939,1711894269324,-500.0,0.0005589,120]
[321098940,1711894269333,-500.0,0.0005589,120]
[321098941,1711894269343,-500.0,0.0005589,2]
[321098942,1711894269352,-240.12461791,0.0005589,120]
[321098943,1711894269361,-500.0,0.0005589,120]
[321098944,1711894269370,-500.0,0.0005589,120]
[321098945,1711894269379,-618.28,0.0005589,120]
[321098946,1711894269388,-500.0,0.0005589,120]
[321098947,1711894269398,-500.0,0.0005589,120]
[321098948,1711894269406,-500.0,0.0005589,120]
[321098949,1711894269417,-500.0,0.0005589,120]
[321098950,1711894269426,-500.0,0.0005589,120]
[321098951,1711894269435,-500.0,0.0005589,120]
[321098952,1711894269445,-639.09,0.0005589,120]
[321098953,1711894269455,-500.0,0.0005589,7]
[321098954,1711894269465,-1467.87,0.0005589,120]
[321098955,1711894269478,-1113.81,0.0005589,120]
[321098956,1711894269487,-500.0,0.0005589,120]
[321098957,1711894269497,-500.0,0.0005589,120]
[321098958,1711894269506,-500.0,0.0005589,120]
[321098959,1711894269515,-11137.41,0.0005589,120]
[321098960,1711894269525,-914.36,0.0005589,120]
[321098961,1711894269535,-786.86,0.0005589,120]
[321098962,1711894269544,-500.0,0.0005589,120]
[321098963,1711894269554,-938.23,0.0005589,120]
[321098964,1711894269564,-500.0,0.0005589,120]
[321098965,1711894269575,-1333.54,0.0005589,120]
[321098966,1711894269586,-1958.97,0.0005589,21]
[321098967,1711894269597,-500.0,0.0005589,120]
[321098968,1711894269607,-500.0,0.0005589,120]
[321098969,1711894269617,-252.45,0.0005589,120]
[321098970,1711894269626,-1044.86,0.0005589,120]
[321098971,1711894269636,-537.74,0.0005589,120]
[321098972,1711894269646,-500.0,0.0005589,120]
[321098973,1711894269656,-500.86,0.0005589,120]
[321098974,1711894269667,-500.0,0.0005589,120]
[321098975,1711894269677,-500.0,0.0005589,120]
[321098976,1711894269687,-5640.51,0.0005589,120]
[321098977,1711894269697,-1892.16,0.0005589,120]
[321098978,1711894269707,-500.0,0.0005589,120]
[321098979,1711894269716,-500.0,0.0005589,120]
[321098980,1711894269726,-500.0,0.0005589,120]
[321098981,1711894269736,-360.42,0.0005589,120]
[321098982,1711894269746,-517.98,0.0005589,120]
[321098983,1711894269755,-500.0,0.0005589,120]
[321098984,1711894269765,-642.68,0.0005589,120]
[321098985,1711894269775,-500.0,0.0005589,120]
[321098986,1711894269784,-520.07,0.0005589,120]
[321098987,1711894269794,-506.29,0.0005589,120]
[321098988,1711894269944,-2259.45,0.0005589,120]
[321098989,1711894269956,-500.0,0.0005589,120]
[321098990,1711894269965,-500.0,0.0005589,120]
[321098991,1711894269975,-333.29,0.0005589,120]
[321098992,1711894269984,-908.46,0.0005589,120]
[321098993,1711894269994,-500.0,0.0005589,120]
[321098994,1711894270003,-639.27,0.0005589,120]
[321098995,1711894270012,-1092.83,0.0005589,120]
[321098996,1711894270021,-500.0,0.0005589,120]
[321098997,1711894270030,-500.0,0.0005589,120]
[321098998,1711894270040,-500.0,0.0005589,120]
[321098999,1711894270050,-2487.04,0.0005589,120]
[321099000,1711894270059,-500.0,0.0005589,120]
[321099001,1711894270069,-1781.98,0.0005589,120]
[321099002,1711894270078,-500.0,0.0005589,120]
[321099003,1711894270088,-1175.87,0.0005589,120]
[321099004,1711894270098,-1336.92,0.0005589,120]
[321099005,1711894270107,-3011.12,0.0005589,120]
[321099006,1711894270117,-500.0,0.0005589,120]
[321099007,1711894270126,-500.0,0.0005589,120]
[321099008,1711894270136,-500.0,0.0005589,120]
[321099009,1711894270146,-500.0,0.0005589,120]
[321099010,1711894270155,-1528.21,0.0005589,120]
[321099011,1711894270165,-500.0,0.0005589,120]
[321099012,1711894270175,-544.34,0.0005589,120]
[321099013,1711894270185,-1000.0,0.0005589,120]
[321099014,1711894270194,-500.0,0.0005589,120]
[321099015,1711894270205,-500.0,0.0005589,120]
[321099016,1711894270214,-500.0,0.0005589,120]
[321099017,1711894270224,-1338.37,0.0005589,120]
[321099018,1711894270233,-500.0,0.0005589,120]
[321099019,1711894270242,-500.0,0.0005589,120]
[321099020,1711894270253,-500.0,0.0005589,120]
[321099021,1711894270263,-519.06,0.0005589,120]
[321099022,1711894270273,-1622.59,0.0005589,120]
[321099023,1711894270283,-374.98,0.0005589,120]
[321099024,1711894270292,-500.0,0.0005589,120]
[321099025,1711894270302,-500.0,0.0005589,120]
[321099026,1711894270312,-605.37,0.0005589,120]
[321099027,1711894270321,-2011.39,0.0005589,120]
[321099028,1711894270333,-430.36948617,0.0005589,120]
[321099029,1711894270342,-1383.81,0.0005589,120]
[321099030,1711894270351,-2546.45,0.0005589,120]
[321099031,1711894270361,-500.0,0.0005589,120]
[321099032,1711894270370,-1692.34,0.0005589,120]
[321099033,1711894270380,-500.0,0.0005589,120]
[321099034,1711894270389,-2361.13,0.0005589,120]
[321099035,1711894270399,-598.21176362,0.0005589,120]
[321099036,1711894270408,-500.0,0.0005589,120]
[321099037,1711894270417,-500.0,0.0005589,120]
[321099038,1711894270426,-216.88,0.0005589,120]
[321099039,1711894270436,-5275.16,0.0005589,120]
[321099040,1711894270445,-209.12,0.0005589,120]
[321099041,1711894270456,-5572.11,0.0005589,120]
[321099042,1711894270466,-500.0,0.0005589,120]
[321099043,1711894270475,-1851.82,0.0005589,120]
[321099044,1711894270485,-568.01,0.0005589,120]
[321099045,1711894270495,-500.0,0.0005589,120]
[321099046,1711894270505,-533.01,0.0005589,120]
[321099047,1711894270515,-2843.98,0.0005589,120]
[321099048,1711894270524,-312.61117587,0.0005589,120]
[321099049,1711894270534,-500.0,0.0005589,120]
[321099050,1711894270543,-500.0,0.0005589,120]
[321099051,1711894270552,-526.73,0.0005589,120]
[321099052,1711894270562,-500.0,0.0005589,120]
[321099053,1711894270572,-3300.5,0.0005589,120]
[321099054,1711894270585,-1608.2,0.0005589,120]
[321099055,1711894270595,-500.0,0.0005589,120]
[321099056,1711894270604,-629.57,0.0005589,120]
[321099057,1711894270614,-500.0,0.0005589,16]
[321099058,1711894270622,-551.36,0.0005589,120]
[321099059,1711894270632,-500.0,0.0005589,7]
[321099060,1711894270641,-500.0,0.0005589,120]
[321099061,1711894270652,-500.0,0.0005589,120]
[321099062,1711894270662,-1509.08,0.0005589,120]
[321099063,1711894270672,-1066.72,0.0005589,120]
[321099064,1711894270681,-500.0,0.0005589,120]
[321099065,1711894270690,-500.0,0.0005589,120]
[321099066,1711894270700,-1382.58,0.0005589,120]
[321099067,1711894270710,-500.0,0.0005589,120]
[321099068,1711894270720,-500.0,0.0005589,120]
[321099069,1711894270730,-500.0,0.0005589,120]
[321099070,1711894270740,-1791.54,0.0005589,120]
[321099071,1711894270749,-500.0,0.0005589,120]
[321099072,1711894270759,-500.0,0.0005589,120]
[321099073,1711894270770,-500.23,0.0005589,120]
[321099074,1711894270780,-500.34,0.0005589,120]
[321099075,1711894270789,-828.12,0.0005589,120]
[321099076,1711894270799,-534.14,0.0005589,120]
[321099077,1711894270810,-500.0,0.0005589,120]
[321099078,1711894270820,-163.48,0.0005589,120]
[321099079,1711894270830,-500.0,0.0005589,120]
[321099080,1711894270840,-513.82,0.0005589,120]
[321099081,1711894270850,-7754.49,0.0005589,120]
[321099082,1711894270860,-500.0,0.0005589,120]
[321099083,1711894270870,-2108.77,0.0005589,120]
[321099084,1711894270880,-200.92,0.0005589,120]
[321099085,1711894270889,-2518.23,0.0005589,120]
[321099086,1711894270899,-500.0,0.0005589,120]
[321099087,1711894270908,-500.0,0.0005589,120]
[321099088,1711894270917,-2060.41,0.0005589,120]
[321099089,1711894270927,-500.0,0.0005589,120]
[321099090,1711894270936,-500.0,0.0005589,120]
[321099091,1711894270945,-500.0,0.0005589,120]
[321099092,1711894270955,-500.0,0.0005589,120]
[321099093,1711894270965,-519.8,0.0005589,120]
[321099094,1711894270974,-500.0,0.0005589,120]
[321099095,1711894270984,-500.0,0.0005589,120]
[321099096,1711894270994,-500.0,0.0005589,120]
[321099097,1711894271004,-500.0,0.0005589,120]
[321099098,1711894271013,-500.0,0.0005589,120]
[321099099,1711894271022,-500.0,0.0005589,120]
[321099100,1711894271031,-507.06,0.0005589,120]
[321099101,1711894271040,-500.0,0.0005589,120]
[321099102,1711894271049,-501.29,0.0005589,120]
[321099103,1711894271058,-500.0,0.0005589,120]
[321099104,1711894271068,-500.0,0.0005589,120]
[321099105,1711894271079,-500.0,0.0005589,120]
[321099106,1711894271091,-500.0,0.0005589,120]
[321099107,1711894271102,-500.0,0.0005589,120]
[321099108,1711894271113,-500.0,0.0005589,120]
[321099109,1711894271123,-9968.34,0.0005589,120]
[321099110,1711894271131,-3471.43,0.0005589,120]
[321099111,1711894271143,-500.0,0.0005589,120]
[321099112,1711894271152,-405.26,0.0005589,120]
[321099113,1711894271161,-500.0,0.0005589,120]
[321099114,1711894271171,-597.56,0.0005589,120]
[321099115,1711894271180,-999.94,0.0005605,2]
[321099116,1711894271189,-286.46,0.00056113,2]
[321099117,1711894271198,-151.0,0.00056137,120]
[321099118,1711894271209,-57239.55,0.00056138,6]
[321099119,1711894271218,-153.21259,0.00056161,2]
[321099120,1711894271227,-513.69,0.00056163,120]
[321099121,1711894271236,-513.69,0.00056163,120]
[321099122,1711894271246,-513.69,0.00056163,120]
[321099123,1711894271255,-513.69,0.00056163,120]
[321099124,1711894271266,-513.78,0.00056163,120]
[321099125,1711894271275,-500.0,0.00056164,120]
[321099126,1711894271284,-664.08,0.00056164,120]
[321099127,1711894271293,-302.58,0.00056164,120]
[321099128,1711894271303,-2110.47,0.00056164,120]
[321099129,1711894271312,-500.0,0.00056164,120]
[321099130,1711894271321,-9971.6,0.00056164,120]
[321099131,1711894271330,-500.0,0.00056164,120]
[321099132,1711894271339,-150.0,0.00056164,120]
[321099133,1711894271348,-500.0,0.00056164,120]
[321099134,1711894271357,-500.0,0.00056164,120]
[321099135,1711894271368,-6781.1,0.00056164,120]
[321099136,1711894271377,-500.0,0.00056164,120]
[321099137,1711894271386,-1000.0,0.00056164,120]
[321099138,1711894271395,-500.0,0.00056164,120]
[321099139,1711894271404,-594.1,0.00056164,120]
[321099140,1711894271413,-500.0,0.00056164,120]
[321099141,1711894271423,-500.0,0.00056164,120]
[321099142,1711894271432,-500.0,0.00056164,120]
[321099143,1711894271441,-500.0,0.00056164,120]
[321099144,1711894271450,-500.0,0.00056164,120]
[321099145,1711894271460,-500.0,0.00056164,120]
[321099146,1711894271469,-500.0,0.00056164,2]
[321099147,1711894271478,-500.0,0.00056164,120]
[321099148,1711894271487,-500.0,0.00056164,120]
[321099149,1711894271496,-500.0,0.00056164,120]
[321099150,1711894271505,-500.0,0.00056164,120]
[321099151,1711894271514,-557.44023725,0.00056164,120]
[321099152,1711894271524,-500.0,0.00056164,120]
[321099153,1711894271533,-597.54694954,0.00056164,120]
[321099154,1711894271543,-500.0,0.00056164,120]
[321099155,1711894271552,-1467.87,0.00056164,120]
[321099156,1711894271561,-1113.81,0.00056164,120]
[321099157,1711894271571,-500.0,0.00056164,120]
[321099158,1711894271581,-500.0,0.00056164,120]
[321099159,1711894271594,-500.0,0.00056164,120]
[321099160,1711894271603,-11137.41,0.00056164,120]
[321099161,1711894271612,-914.36,0.00056164,120]
[321099162,1711894271622,-786.86,0.00056164,120]
[321099163,1711894271633,-500.0,0.00056164,120]
[321099164,1711894271642,-938.23,0.00056164,120]
[321099165,1711894271651,-500.0,0.00056164,120]
[321099166,1711894271662,-1333.54,0.00056164,120]
[321099167,1711894271671,-1958.97,0.00056164,21]
[321099168,1711894271681,-500.0,0.00056164,120]
[321099169,1711894271690,-500.0,0.00056164,120]
[321099170,1711894271700,-1044.86,0.00056164,120]
[321099171,1711894271710,-500.0,0.00056164,120]
[321099172,1711894271718,-500.86,0.00056164,120]
[321099173,1711894271728,-500.0,0.00056164,120]
[321099174,1711894271737,-483.1440055,0.00056164,120]
[321099175,1711894271747,-5640.51,0.00056164,120]
[321099176,1711894271756,-1892.16,0.00056164,120]
[321099177,1711894271766,-500.0,0.00056164,120]
[321099178,1711894271775,-300.71,0.00056164,120]
[321099179,1711894271784,-500.0,0.00056164,120]
[321099180,1711894271794,-517.98,0.00056164,120]
[321099181,1711894271803,-500.0,0.00056164,120]
[321099182,1711894271812,-642.68,0.00056164,120]
[321099183,1711894271822,-500.0,0.00056164,120]
[321099184,1711894271831,-506.29,0.00056164,120]
[321099185,1711894271842,-2259.45,0.00056164,120]
[321099186,1711894271852,-595.99,0.00056164,120]
[321099187,1711894271861,-500.0,0.00056164,120]
[321099188,1711894271871,-908.46,0.00056164,120]
[321099189,1711894271881,-500.0,0.00056164,120]
[321099190,1711894271891,-639.27,0.00056164,120]
[321099191,1711894271900,-1092.83,0.00056164,120]
[321099192,1711894271909,-427.79,0.00056164,120]
[321099193,1711894271919,-500.0,0.00056164,120]
[321099194,1711894271928,-170.14,0.00056164,120]
[321099195,1711894271938,-2487.04,0.00056164,120]
[321099196,1711894271947,-500.0,0.00056164,120]
[321099197,1711894271958,-1781.98,0.00056164,120]
[321099198,1711894271967,-500.0,0.00056164,120]
[321099199,1711894271977,-1175.87,0.00056164,120]
[321099200,1711894271986,-1336.92,0.00056164,120]
[321099201,1711894271995,-3011.12,0.00056164,120]
[321099202,1711894272004,-500.0,0.00056164,120]
[321099203,1711894272014,-500.0,0.00056164,120]
[321099204,1711894272023,-500.0,0.00056164,120]
[321099205,1711894272033,-500.0,0.00056164,120]
[321099206,1711894272042,-1528.21,0.00056164,120]
[321099207,1711894272052,-500.0,0.00056164,120]
[321099208,1711894272061,-544.34,0.00056164,120]
[321099209,1711894272072,-395.01,0.00056164,120]
[321099210,1711894272082,-500.0,0.00056164,120]
[321099211,1711894272091,-500.0,0.00056164,120]
[321099212,1711894272101,-1338.37,0.00056164,120]
[321099213,1711894272110,-500.0,0.00056164,120]
[321099214,1711894272120,-500.0,0.00056164,120]
[321099215,1711894272129,-500.0,0.00056164,120]
[321099216,1711894272138,-519.06,0.00056164,120]
[321099217,1711894272147,-1622.59,0.00056164,120]
[321099218,1711894272157,-500.0,0.00056164,120]
[321099219,1711894272166,-500.0,0.00056164,120]
[321099220,1711894272176,-605.37,0.00056164,120]
[321099221,1711894272184,-2011.39,0.00056164,120]
[321099222,1711894272193,-1383.81,0.00056164,120]
[321099223,1711894272203,-2546.45,0.00056164,120]
[321099224,1711894272212,-1692.34,0.00056164,120]
[321099225,1711894272221,-500.0,0.00056164,120]
[321099226,1711894272230,-2361.13,0.00056164,120]
[321099227,1711894272239,-500.0,0.00056164,120]
[321099228,1711894272248,-252.42,0.00056164,120]
[321099229,1711894272258,-5275.16,0.00056164,120]
[321099230,1711894272267,-5572.11,0.00056164,120]
[321099231,1711894272277,-1851.82,0.00056164,120]
[321099232,1711894272287,-568.01,0.00056164,120]
[321099233,1711894272328,-533.01,0.00056164,120]
[321099234,1711894272337,-2843.98,0.00056164,120]
[321099235,1711894272346,-500.0,0.00056164,120]
[321099236,1711894272356,-500.0,0.00056164,120]
[321099237,1711894272365,-2000.0,0.00056164,120]
[321099238,1711894272374,-526.73,0.00056164,120]
[321099239,1711894272383,-500.0,0.00056164,120]
[321099240,1711894272392,-3300.5,0.00056164,120]
[321099241,1711894272401,-1608.2,0.00056164,120]
[321099242,1711894272411,-500.0,0.00056164,120]
[321099243,1711894272420,-500.0,0.00056164,16]
[321099244,1711894272429,-551.36,0.00056164,120]
[321099245,1711894272438,-500.0,0.00056164,7]
[321099246,1711894272448,-500.0,0.00056164,120]
[321099247,1711894272457,-500.0,0.00056164,120]
[321099248,1711894272467,-1509.08,0.00056164,120]
[321099249,1711894272476,-1066.72,0.00056164,120]
[321099250,1711894272485,-500.0,0.00056164,120]
[321099251,1711894272494,-1382.58,0.00056164,120]
[321099252,1711894272503,-500.0,0.00056164,120]
[321099253,1711894272513,-500.0,0.00056164,120]
[321099254,1711894272523,-500.0,0.00056164,120]
[321099255,1711894272532,-500.0,0.00056164,120]
[321099256,1711894272541,-500.0,0.00056164,120]
[321099257,1711894272550,-1791.54,0.00056164,120]
[321099258,1711894272559,-500.23,0.00056164,120]
[321099259,1711894272568,-828.12,0.00056164,120]
[321099260,1711894272579,-534.14,0.00056164,120]
[321099261,1711894272592,-500.0,0.00056164,120]
[321099262,1711894272601,-513.82,0.00056164,120]
[321099263,1711894272611,-7754.49,0.00056164,120]
[321099264,1711894272620,-500.0,0.00056164,120]
[321099265,1711894272630,-2108.77,0.00056164,120]
[321099266,1711894272639,-2518.23,0.00056164,120]
[321099267,1711894272649,-500.0,0.00056164,120]
[321099268,1711894272658,-500.0,0.00056164,120]
[321099269,1711894272668,-2060.41,0.00056164,120]
[321099270,1711894272677,-500.0,0.00056164,120]
[321099271,1711894272686,-500.0,0.00056164,120]
[321099272,1711894272695,-500.0,0.00056164,120]
[321099273,1711894272704,-500.0,0.00056164,120]
[321099274,1711894272713,-500.0,0.00056164,120]
[321099275,1711894272722,-500.0,0.00056164,120]
[321099276,1711894272732,-446.06,0.00056164,120]
[321099277,1711894272742,-500.0,0.00056164,120]
[321099278,1711894272751,-500.0,0.00056164,120]
[321099279,1711894272760,-507.06,0.00056164,120]
[321099280,1711894272769,-501.29,0.00056164,120]
[321099281,1711894272780,-267.41,0.00056164,120]
[321099282,1711894272789,-500.0,0.00056164,120]
[321099283,1711894272799,-500.0,0.00056164,120]
[321099284,1711894272809,-500.0,0.00056164,120]
[321099285,1711894272817,-500.0,0.00056164,120]
[321099286,1711894272827,-9968.34,0.00056164,120]
[321099287,1711894272836,-3471.43,0.00056164,120]
[321099288,1711894272845,-500.0,0.00056164,120]
[321099289,1711894272855,-463.15,0.00056164,120]
[321099290,1711894272864,-500.0,0.00056438,120]
[321099291,1711894272873,-664.08,0.00056438,120]
[321099292,1711894272882,-2110.47,0.00056438,120]
[321099293,1711894272892,-500.0,0.00056438,120]
[321099294,1711894272901,-9971.6,0.00056438,120]
[321099295,1711894272910,-500.0,0.00056438,120]
[321099296,1711894272919,-150.0,0.00056438,120]
[321099297,1711894272928,-500.0,0.00056438,120]
[321099298,1711894272937,-500.0,0.00056438,120]
[321099299,1711894272946,-6781.1,0.00056438,120]
[321099300,1711894272955,-447.98783897,0.00056438,120]
[321099301,1711894272964,-1000.0,0.00056438,120]
[321099302,1711894272973,-500.0,0.00056438,120]
[321099303,1711894272983,-500.0,0.00056438,120]
[321099304,1711894272993,-581.24,0.00056438,120]
[321099305,1711894273002,-412.9,0.00056438,120]
[321099306,1711894273011,-233.24,0.00056438,120]
[321099307,1711894273020,-500.0,0.00056438,120]
[321099308,1711894273028,-306.73,0.00056438,120]
[321099309,1711894273038,-500.0,0.00056438,2]
[321099310,1711894273047,-500.0,0.00056438,120]
[321099311,1711894273056,-500.0,0.00056438,120]
[321099312,1711894273065,-500.0,0.00056438,120]
[321099313,1711894273075,-629.81,0.00056438,120]
[321099314,1711894273084,-500.0,0.00056438,120]
[321099315,1711894273097,-500.0,0.00056438,120]
[321099316,1711894273106,-1467.87,0.00056438,120]
[321099317,1711894273115,-1113.81,0.00056438,120]
[321099318,1711894273125,-500.0,0.00056438,120]
[321099319,1711894273134,-387.27718853,0.00056438,120]
[321099320,1711894273143,-326.84,0.00056438,120]
[321099321,1711894273151,-11137.41,0.00056438,120]
[321099322,1711894273161,-914.36,0.00056438,120]
[321099323,1711894273170,-786.86,0.00056438,120]
[321099324,1711894273179,-500.0,0.00056438,120]
[321099325,1711894273188,-938.23,0.00056438,120]
[321099326,1711894273197,-500.0,0.00056438,120]
[321099327,1711894273206,-1333.54,0.00056438,120]
[321099328,1711894273214,-1958.97,0.00056438,21]
[321099329,1711894273223,-500.0,0.00056438,120]
[321099330,1711894273232,-500.0,0.00056438,120]
[321099331,1711894273241,-1044.86,0.00056438,120]
[321099332,1711894273250,-643.19,0.00056438,120]
[321099333,1711894273260,-500.86,0.00056438,120]
[321099334,1711894273269,-367.32,0.00056438,120]
[321099335,1711894273278,-5640.51,0.00056438,120]
[321099336,1711894273287,-1892.16,0.00056438,120]
[321099337,1711894273296,-500.0,0.00056438,120]
[321099338,1711894273305,-500.0,0.00056438,120]
[321099339,1711894273314,-517.98,0.00056438,120]
[321099340,1711894273324,-500.0,0.00056438,120]
[321099341,1711894273333,-642.68,0.00056438,120]
[321099342,1711894273342,-500.0,0.00056438,120]
[321099343,1711894273351,-506.29,0.00056438,120]
[321099344,1711894273360,-2259.45,0.00056438,120]
[321099345,1711894273369,-500.0,0.00056438,120]
[321099346,1711894273378,-908.46,0.00056438,120]
[321099347,1711894273387,-500.0,0.00056438,120]
[321099348,1711894273397,-639.27,0.00056438,120]
[321099349,1711894273406,-1092.83,0.00056438,120]
[321099350,1711894273415,-500.0,0.00056438,120]
[321099351,1711894273424,-2487.04,0.00056438,120]
[321099352,1711894273433,-500.0,0.00056438,120]
[321099353,1711894273442,-1781.98,0.00056438,120]
[321099354,1711894273451,-500.0,0.00056438,120]
[321099355,1711894273461,-1175.87,0.00056438,120]
[321099356,1711894273470,-1336.92,0.00056438,120]
[321099357,1711894273480,-3011.12,0.00056438,120]
[321099358,1711894273489,-500.0,0.00056438,120]
[321099359,1711894273498,-604.16217448,0.00056438,120]
[321099360,1711894273508,-500.0,0.00056438,120]
[321099361,1711894273518,-500.0,0.00056438,120]
[321099362,1711894273527,-1528.21,0.00056438,120]
[321099363,1711894273536,-500.0,0.00056438,120]
[321099364,1711894273545,-544.34,0.00056438,120]
[321099365,1711894273554,-500.0,0.00056438,120]
[321099366,1711894273564,-500.0,0.00056438,120]
[321099367,1711894273573,-1338.37,0.00056438,120]
[321099368,1711894273584,-500.0,0.00056438,120]
[321099369,1711894273596,-500.0,0.00056438,120]
[321099370,1711894273605,-500.0,0.00056438,120]
[321099371,1711894273614,-519.06,0.00056438,120]
[321099372,1711894273623,-1622.59,0.00056438,120]
[321099373,1711894273633,-500.0,0.00056438,120]